[Event "*** Titled Tuesday Blitz"]
[Site "Chess.com"]
[Date "2020.04.28"]
[Round "4"]
[White "SloLev"]
[Black "Gloomy_Wanderer"]
[Result "1/2-1/2"]
[WhiteElo "2533"]
[BlackElo "2811"]
[TimeControl "180+1"]
[EndTime "10:41:35 PDT"]
[Termination "Game drawn by repetition"]

1. d4 {[%clk 0:02:53.6]} 1... Nf6 {[%clk 0:02:59.8]} 2. Bf4 {[%clk 0:02:52.9]}
2... e6 {[%clk 0:03:00]} 3. e3 {[%clk 0:02:52.1]} 3... b6 {[%clk 0:03:00.2]} 4.
Nf3 {[%clk 0:02:45.7]} 4... Be7 {[%clk 0:02:59.1]} 5. Bd3 {[%clk 0:02:45.9]}
5... O-O {[%clk 0:02:57.9]} 6. c3 {[%clk 0:02:45.3]} 6... c5 {[%clk 0:02:57.8]}
7. Nbd2 {[%clk 0:02:43.9]} 7... cxd4 {[%clk 0:02:58.1]} 8. exd4 {[%clk
0:02:43.5]} 8... Ba6 {[%clk 0:02:58]} 9. Bxa6 {[%clk 0:02:42.1]} 9... Nxa6
{[%clk 0:02:58.9]} 10. Qe2 {[%clk 0:02:41.7]} 10... Nc7 {[%clk 0:02:58.9]} 11.
O-O {[%clk 0:02:42.1]} 11... d6 {[%clk 0:02:59.2]} 12. Ne4 {[%clk 0:02:40.4]}
12... Nfd5 {[%clk 0:02:57]} 13. Bg3 {[%clk 0:02:39.9]} 13... h6 {[%clk
0:02:52.2]} 14. h3 {[%clk 0:02:35.5]} 14... Qd7 {[%clk 0:02:50.1]} 15. Rfe1
{[%clk 0:02:26.1]} 15... b5 {[%clk 0:02:49.8]} 16. a3 {[%clk 0:02:21.5]} 16...
Nb6 {[%clk 0:02:48.1]} 17. Ned2 {[%clk 0:02:20.3]} 17... Ncd5 {[%clk 0:02:46.4]}
18. Qd3 {[%clk 0:02:09.8]} 18... Qc6 {[%clk 0:02:44.3]} 19. Rec1 {[%clk
0:01:59.4]} 19... Rfc8 {[%clk 0:02:43.3]} 20. Rc2 {[%clk 0:01:38.7]} 20... a6
{[%clk 0:02:36.4]} 21. Re1 {[%clk 0:01:31.6]} 21... Bf8 {[%clk 0:02:33.9]} 22.
Ne4 {[%clk 0:01:27.8]} 22... Rd8 {[%clk 0:02:27.6]} 23. b3 {[%clk 0:01:22.6]}
23... Rac8 {[%clk 0:02:23.9]} 24. Rec1 {[%clk 0:01:22.3]} 24... Ne7 {[%clk
0:02:18.3]} 25. c4 {[%clk 0:01:16.1]} 25... bxc4 {[%clk 0:01:44.8]} 26. bxc4
{[%clk 0:01:14.7]} 26... d5 {[%clk 0:01:26.4]} 27. cxd5 {[%clk 0:01:06.5]} 27...
Qxd5 {[%clk 0:01:25]} 28. Bc7 {[%clk 0:00:54.3]} 28... Rxc7 {[%clk 0:01:08.9]}
29. Rxc7 {[%clk 0:00:53.7]} 29... Nf5 {[%clk 0:01:04.4]} 30. R7c6 {[%clk
0:00:40.3]} 30... Nd7 {[%clk 0:00:49.4]} 31. Rxa6 {[%clk 0:00:38.3]} 31... Be7
{[%clk 0:00:43.5]} 32. Ng3 {[%clk 0:00:35]} 32... Nxg3 {[%clk 0:00:42.1]} 33.
fxg3 {[%clk 0:00:35.9]} 33... Nf6 {[%clk 0:00:41.1]} 34. Qc4 {[%clk 0:00:34.5]}
34... Qf5 {[%clk 0:00:36.2]} 35. a4 {[%clk 0:00:31.8]} 35... Bd6 {[%clk
0:00:34.3]} 36. Rc6 {[%clk 0:00:07.2]} 36... Bxg3 {[%clk 0:00:32]} 37. Rc8
{[%clk 0:00:06.1]} 37... Rxc8 {[%clk 0:00:26.8]} 38. Qxc8+ {[%clk 0:00:07]}
38... Kh7 {[%clk 0:00:27.3]} 39. Qc2 {[%clk 0:00:07.4]} 39... Ne4 {[%clk
0:00:27.7]} 40. Rf1 {[%clk 0:00:04.1]} 40... Qd5 {[%clk 0:00:20.6]} 41. Kh1
{[%clk 0:00:03.2]} 41... f5 {[%clk 0:00:20.3]} 42. Nd2 {[%clk 0:00:02.9]} 42...
Nf2+ {[%clk 0:00:19.5]} 43. Kg1 {[%clk 0:00:03.1]} 43... Qxd4 {[%clk 0:00:18.5]}
44. Nf3 {[%clk 0:00:02.7]} 44... Nxh3+ {[%clk 0:00:17.7]} 45. Kh1 {[%clk
0:00:03]} 45... Nf2+ {[%clk 0:00:18.1]} 46. Kg1 {[%clk 0:00:03.1]} 46... Nh3+
{[%clk 0:00:10.5]} 47. Kh1 {[%clk 0:00:03.2]} 47... Qg4 {[%clk 0:00:11.1]} 48.
a5 {[%clk 0:00:02.1]} 48... Qh5 {[%clk 0:00:09.5]} 49. gxh3 {[%clk 0:00:01.4]}
49... Qxh3+ {[%clk 0:00:09.5]} 50. Kg1 {[%clk 0:00:02.3]} 50... Bb8 {[%clk
0:00:07.6]} 51. Qg2 {[%clk 0:00:02.8]} 51... Ba7+ {[%clk 0:00:07.6]} 52. Rf2
{[%clk 0:00:03.2]} 52... Qh5 {[%clk 0:00:05.9]} 53. Kf1 {[%clk 0:00:02.6]} 53...
Bxf2 {[%clk 0:00:06.1]} 54. Kxf2 {[%clk 0:00:02.4]} 54... Qe8 {[%clk 0:00:06.1]}
55. Qg3 {[%clk 0:00:02.3]} 55... Qb5 {[%clk 0:00:05.8]} 56. Qe5 {[%clk
0:00:02.4]} 56... Qc4 {[%clk 0:00:04.6]} 57. Kg2 {[%clk 0:00:02.3]} 57... Qg4+
{[%clk 0:00:04.4]} 58. Kf2 {[%clk 0:00:02.4]} 58... Qc4 {[%clk 0:00:05.1]} 59.
Kg1 {[%clk 0:00:02.2]} 59... Qg4+ {[%clk 0:00:04.5]} 60. Kf2 {[%clk 0:00:02.6]}
60... Qc4 {[%clk 0:00:05.4]} 1/2-1/2

[Event "*** Titled Tuesday Blitz"]
[Site "Chess.com"]
[Date "2020.04.28"]
[Round "4"]
[White "tan275"]
[Black "Kildepiotr"]
[Result "0-1"]
[WhiteElo "2190"]
[BlackElo "2564"]
[TimeControl "180+1"]
[EndTime "10:41:37 PDT"]
[Termination "Kildepiotr won by resignation"]

1. d4 {[%clk 0:03:00.9]} 1... c5 {[%clk 0:02:59.3]} 2. d5 {[%clk 0:02:59.8]}
2... e5 {[%clk 0:02:59.4]} 3. c4 {[%clk 0:02:59.8]} 3... d6 {[%clk 0:02:59.6]}
4. Nc3 {[%clk 0:02:59.5]} 4... Be7 {[%clk 0:03:00.1]} 5. e3 {[%clk 0:02:55.1]}
5... a6 {[%clk 0:02:58.9]} 6. Bd3 {[%clk 0:02:53.8]} 6... f5 {[%clk 0:02:57.6]}
7. Nge2 {[%clk 0:02:46.7]} 7... Bf6 {[%clk 0:02:53.7]} 8. f3 {[%clk 0:02:25.2]}
8... Ne7 {[%clk 0:02:51.3]} 9. O-O {[%clk 0:02:23]} 9... O-O {[%clk 0:02:50.1]}
10. Ng3 {[%clk 0:02:21.2]} 10... g6 {[%clk 0:02:48.6]} 11. a4 {[%clk 0:02:16]}
11... Nd7 {[%clk 0:02:46.1]} 12. a5 {[%clk 0:02:15.6]} 12... Bg5 {[%clk
0:02:40.1]} 13. f4 {[%clk 0:02:10.3]} 13... Bf6 {[%clk 0:02:38.2]} 14. e4 {[%clk
0:02:08.9]} 14... exf4 {[%clk 0:02:30.4]} 15. Bxf4 {[%clk 0:02:08.1]} 15... Ne5
{[%clk 0:02:30.4]} 16. Bxe5 {[%clk 0:01:57]} 16... Bxe5 {[%clk 0:02:30.3]} 17.
exf5 {[%clk 0:01:55.2]} 17... Nxf5 {[%clk 0:02:29.4]} 18. Nxf5 {[%clk
0:01:54.6]} 18... Bxf5 {[%clk 0:02:26.2]} 19. Bxf5 {[%clk 0:01:52.1]} 19... Rxf5
{[%clk 0:02:20.4]} 20. Rxf5 {[%clk 0:01:49.5]} 20... gxf5 {[%clk 0:02:20.2]} 21.
Qh5 {[%clk 0:01:43.5]} 21... Qf6 {[%clk 0:02:17.4]} 22. Rf1 {[%clk 0:01:40.2]}
22... Rf8 {[%clk 0:02:15.7]} 23. Ne4 {[%clk 0:01:30.3]} 23... Qg6 {[%clk
0:02:15.4]} 24. Qf3 {[%clk 0:01:17.4]} 24... Bxb2 {[%clk 0:01:59.9]} 25. Ng3
{[%clk 0:01:13.7]} 25... f4 {[%clk 0:01:47.5]} 26. Ne2 {[%clk 0:01:05.8]} 26...
Be5 {[%clk 0:01:46.7]} 27. Kh1 {[%clk 0:01:04.2]} 27... Rf7 {[%clk 0:01:43.9]}
28. h3 {[%clk 0:00:47.8]} 28... Kg7 {[%clk 0:01:36.3]} 29. Nc3 {[%clk
0:00:37.5]} 29... Bxc3 {[%clk 0:01:26.9]} 30. Qxc3+ {[%clk 0:00:36.5]} 30... Qf6
{[%clk 0:01:19.7]} 31. Qxf6+ {[%clk 0:00:33.6]} 31... Rxf6 {[%clk 0:01:19.1]}
32. Rb1 {[%clk 0:00:33.7]} 32... Rf7 {[%clk 0:01:18.3]} 33. Rf1 {[%clk
0:00:24.9]} 33... Kg6 {[%clk 0:01:17.1]} 34. Rf3 {[%clk 0:00:24.4]} 34... Kf5
{[%clk 0:01:14.8]} 35. Kg1 {[%clk 0:00:24.3]} 35... Re7 {[%clk 0:01:09.3]} 36.
Rb3 {[%clk 0:00:19.8]} 36... Ke5 {[%clk 0:01:05.7]} 37. Rd3 {[%clk 0:00:16.3]}
37... Ke4 {[%clk 0:01:02]} 38. Rd1 {[%clk 0:00:16.6]} 38... Rf7 {[%clk
0:00:59.4]} 39. Kf2 {[%clk 0:00:15.8]} 39... f3 {[%clk 0:00:57.8]} 40. g3 {[%clk
0:00:15.7]} 40... h5 {[%clk 0:00:53.3]} 41. h4 {[%clk 0:00:14.1]} 41... Ke5
{[%clk 0:00:43.7]} 42. Rd3 {[%clk 0:00:13]} 42... Ke4 {[%clk 0:00:41.9]} 43. Rd1
{[%clk 0:00:13]} 43... Rf8 {[%clk 0:00:40.2]} 44. Rd2 {[%clk 0:00:12.9]} 44...
Rg8 {[%clk 0:00:31]} 45. Rd1 {[%clk 0:00:11.5]} 45... Rg4 {[%clk 0:00:30.8]} 46.
Rd2 {[%clk 0:00:09]} 46... Ke5 {[%clk 0:00:30.2]} 47. Rc2 {[%clk 0:00:08.8]}
47... Kd4 {[%clk 0:00:28.9]} 48. Kxf3 {[%clk 0:00:08]} 48... Kd3 {[%clk
0:00:29.2]} 49. Rb2 {[%clk 0:00:08.5]} 49... Kxc4 {[%clk 0:00:27.9]} 50. Rxb7
{[%clk 0:00:08.6]} 50... Kxd5 {[%clk 0:00:27.9]} 51. Rb6 {[%clk 0:00:07.9]}
51... Ra4 {[%clk 0:00:25.5]} 52. Rxa6 {[%clk 0:00:07.5]} 52... c4 {[%clk
0:00:25.9]} 53. Ra8 {[%clk 0:00:06.4]} 53... c3 {[%clk 0:00:24.1]} 54. Rc8
{[%clk 0:00:06.1]} 54... Kd4 {[%clk 0:00:23.8]} 55. Rc6 {[%clk 0:00:03.4]} 55...
d5 {[%clk 0:00:22.3]} 56. Ke2 {[%clk 0:00:03.3]} 56... Rxa5 {[%clk 0:00:21.3]}
57. Kd1 {[%clk 0:00:03.3]} 57... Ra1+ {[%clk 0:00:20.7]} 58. Kc2 {[%clk
0:00:03.4]} 58... Ra2+ {[%clk 0:00:20.8]} 59. Kb3 {[%clk 0:00:04]} 59... Rb2+
{[%clk 0:00:20.6]} 60. Ka3 {[%clk 0:00:04.4]} 60... Rb8 {[%clk 0:00:20]} 61. Ka2
{[%clk 0:00:04.8]} 61... Kd3 {[%clk 0:00:19.9]} 0-1

[Event "*** Titled Tuesday Blitz"]
[Site "Chess.com"]
[Date "2020.04.28"]
[Round "4"]
[White "ChesterF"]
[Black "NemtsevIgor"]
[Result "0-1"]
[WhiteElo "2539"]
[BlackElo "2371"]
[TimeControl "180+1"]
[EndTime "10:41:38 PDT"]
[Termination "NemtsevIgor won by checkmate"]

1. e4 {[%clk 0:02:59.5]} 1... c6 {[%clk 0:02:59.9]} 2. d4 {[%clk 0:02:59.2]}
2... d5 {[%clk 0:03:00.1]} 3. e5 {[%clk 0:03:00.1]} 3... c5 {[%clk 0:03:00.2]}
4. dxc5 {[%clk 0:03:00.3]} 4... Nc6 {[%clk 0:03:00]} 5. f4 {[%clk 0:03:00.6]}
5... e6 {[%clk 0:02:52.4]} 6. Be3 {[%clk 0:03:00.4]} 6... d4 {[%clk 0:02:51.2]}
7. Bf2 {[%clk 0:02:56.8]} 7... Bxc5 {[%clk 0:02:51.3]} 8. Bd3 {[%clk 0:02:56.4]}
8... Nge7 {[%clk 0:02:47.3]} 9. a3 {[%clk 0:02:56]} 9... a5 {[%clk 0:02:45.5]}
10. Nd2 {[%clk 0:02:55.4]} 10... O-O {[%clk 0:02:24.7]} 11. Ngf3 {[%clk
0:02:47.4]} 11... h6 {[%clk 0:02:24.3]} 12. O-O {[%clk 0:02:46.9]} 12... Nf5
{[%clk 0:02:21]} 13. Qe2 {[%clk 0:02:40.2]} 13... a4 {[%clk 0:02:12.7]} 14. Ne4
{[%clk 0:02:38.1]} 14... Ba7 {[%clk 0:02:04.2]} 15. Rfd1 {[%clk 0:02:31.6]}
15... Qc7 {[%clk 0:01:41.8]} 16. Kh1 {[%clk 0:02:26.5]} 16... Bd7 {[%clk
0:01:38]} 17. Rg1 {[%clk 0:02:23.6]} 17... Nce7 {[%clk 0:01:28.1]} 18. g4 {[%clk
0:02:11.7]} 18... Ne3 {[%clk 0:01:28.2]} 19. Nxd4 {[%clk 0:01:38.9]} 19... Bxd4
{[%clk 0:01:16.9]} 20. Bxe3 {[%clk 0:01:38.7]} 20... Bxe3 {[%clk 0:01:02.7]} 21.
Qxe3 {[%clk 0:01:37.8]} 21... Bc6 {[%clk 0:01:02.6]} 22. g5 {[%clk 0:01:35.3]}
22... Nf5 {[%clk 0:00:58.8]} 23. Qf3 {[%clk 0:01:05.3]} 23... h5 {[%clk
0:00:42.6]} 24. Qxh5 {[%clk 0:01:01.1]} 24... g6 {[%clk 0:00:42.5]} 25. Qf3
{[%clk 0:00:52.5]} 25... Kg7 {[%clk 0:00:40.9]} 26. Rae1 {[%clk 0:00:50.8]}
26... Rh8 {[%clk 0:00:40.1]} 27. Qf2 {[%clk 0:00:36.9]} 27... Rad8 {[%clk
0:00:39.1]} 28. Rg2 {[%clk 0:00:32.9]} 28... Qa5 {[%clk 0:00:31.2]} 29. Kg1
{[%clk 0:00:29.7]} 29... Nh4 {[%clk 0:00:28]} 30. Rg4 {[%clk 0:00:27.8]} 30...
Nf5 {[%clk 0:00:22.9]} 31. Nf6 {[%clk 0:00:14.7]} 31... Qc7 {[%clk 0:00:17.3]}
32. Be4 {[%clk 0:00:10.1]} 32... Bxe4 {[%clk 0:00:16.4]} 33. Nxe4 {[%clk
0:00:10.2]} 33... Rd4 {[%clk 0:00:16.4]} 34. c3 {[%clk 0:00:09.1]} 34... Rd5
{[%clk 0:00:13.4]} 35. Rg2 {[%clk 0:00:09.3]} 35... Qd8 {[%clk 0:00:11.9]} 36.
Qe2 {[%clk 0:00:07.2]} 36... Nh4 {[%clk 0:00:11.2]} 37. Rf2 {[%clk 0:00:07.6]}
37... Qd7 {[%clk 0:00:09.1]} 38. Nf6 {[%clk 0:00:07.5]} 38... Qc6 {[%clk
0:00:09.4]} 39. Nxd5 {[%clk 0:00:08.1]} 39... Qxd5 {[%clk 0:00:09.2]} 40. Qe4
{[%clk 0:00:09]} 40... Qb3 {[%clk 0:00:08.2]} 41. Qc2 {[%clk 0:00:07.9]} 41...
Qc4 {[%clk 0:00:07.8]} 42. Qe4 {[%clk 0:00:08]} 42... Qb3 {[%clk 0:00:07.9]} 43.
Qd4 {[%clk 0:00:07.9]} 43... Nf5 {[%clk 0:00:07.2]} 44. Qe4 {[%clk 0:00:08.2]}
44... Rh4 {[%clk 0:00:06.6]} 45. Rd2 {[%clk 0:00:08.3]} 45... Rg4+ {[%clk
0:00:06.7]} 46. Kh1 {[%clk 0:00:08.1]} 46... Qb5 {[%clk 0:00:06.3]} 47. Rg1
{[%clk 0:00:07.1]} 47... Rh4 {[%clk 0:00:06.3]} 48. Rd8 {[%clk 0:00:06.6]} 48...
Qc5 {[%clk 0:00:05.3]} 49. Qf3 {[%clk 0:00:03.6]} 49... Qc4 {[%clk 0:00:04.6]}
50. Rdd1 {[%clk 0:00:01.4]} 50... Qb3 {[%clk 0:00:04.4]} 51. Rdf1 {[%clk
0:00:01.1]} 51... Qc2 {[%clk 0:00:04.7]} 52. Rg4 {[%clk 0:00:01.7]} 52... Qxh2#
{[%clk 0:00:04.5]} 0-1

[Event "*** Titled Tuesday Blitz"]
[Site "Chess.com"]
[Date "2020.04.28"]
[Round "4"]
[White "Leonid_Starozhilov"]
[Black "Qvalda"]
[Result "1-0"]
[WhiteElo "2603"]
[BlackElo "2406"]
[TimeControl "180+1"]
[EndTime "10:41:45 PDT"]
[Termination "Leonid_Starozhilov won on time"]

1. e4 {[%clk 0:03:00.9]} 1... c5 {[%clk 0:02:55.1]} 2. Nf3 {[%clk 0:03:01.2]}
2... e6 {[%clk 0:02:52.3]} 3. c4 {[%clk 0:03:01.1]} 3... a6 {[%clk 0:02:43.5]}
4. Nc3 {[%clk 0:03:00.5]} 4... Nc6 {[%clk 0:02:31.7]} 5. d4 {[%clk 0:02:59.4]}
5... cxd4 {[%clk 0:02:29.4]} 6. Nxd4 {[%clk 0:03:00.3]} 6... Bb4 {[%clk
0:02:26.1]} 7. Nxc6 {[%clk 0:02:57.6]} 7... Bxc3+ {[%clk 0:02:13.4]} 8. bxc3
{[%clk 0:02:57.3]} 8... dxc6 {[%clk 0:02:12.7]} 9. Qxd8+ {[%clk 0:02:28.7]} 9...
Kxd8 {[%clk 0:02:13.6]} 10. c5 {[%clk 0:02:26.8]} 10... e5 {[%clk 0:01:57.5]}
11. Be3 {[%clk 0:02:22.2]} 11... Be6 {[%clk 0:01:54.6]} 12. f3 {[%clk
0:02:13.1]} 12... Kc7 {[%clk 0:01:46.2]} 13. Be2 {[%clk 0:02:11.9]} 13... Rd8
{[%clk 0:01:44.1]} 14. Kf2 {[%clk 0:02:11.2]} 14... Ne7 {[%clk 0:01:31.2]} 15.
Rhb1 {[%clk 0:02:09]} 15... f6 {[%clk 0:01:25.2]} 16. Rb2 {[%clk 0:02:07]} 16...
Bc8 {[%clk 0:01:22]} 17. a4 {[%clk 0:02:01.6]} 17... g5 {[%clk 0:01:20.3]} 18.
Bc4 {[%clk 0:01:30.4]} 18... Ng6 {[%clk 0:01:13.7]} 19. g3 {[%clk 0:01:19.3]}
19... Rhf8 {[%clk 0:01:05.7]} 20. Kg2 {[%clk 0:01:07]} 20... h5 {[%clk
0:01:01.3]} 21. Rab1 {[%clk 0:00:51.1]} 21... h4 {[%clk 0:00:55.7]} 22. g4
{[%clk 0:00:35.3]} 22... Nf4+ {[%clk 0:00:35.3]} 23. Bxf4 {[%clk 0:00:32.9]}
23... exf4 {[%clk 0:00:36.2]} 24. Kf2 {[%clk 0:00:30.8]} 24... Rfe8 {[%clk
0:00:32.6]} 25. Be2 {[%clk 0:00:28.5]} 25... Re7 {[%clk 0:00:29.8]} 26. Rd1
{[%clk 0:00:14.9]} 26... Rxd1 {[%clk 0:00:28.7]} 27. Bxd1 {[%clk 0:00:15.8]}
27... Re5 {[%clk 0:00:28.4]} 28. Be2 {[%clk 0:00:11.1]} 28... Rxc5 {[%clk
0:00:28]} 29. c4 {[%clk 0:00:10.4]} 29... Be6 {[%clk 0:00:19.1]} 30. Rc2 {[%clk
0:00:10.1]} 30... b5 {[%clk 0:00:16.5]} 31. axb5 {[%clk 0:00:09.8]} 31... axb5
{[%clk 0:00:16]} 32. Ke1 {[%clk 0:00:09.1]} 32... Bxc4 {[%clk 0:00:10.3]} 33.
Kd2 {[%clk 0:00:09.2]} 33... Kd6 {[%clk 0:00:08.6]} 34. Bd1 {[%clk 0:00:07.4]}
34... Be6 {[%clk 0:00:05.4]} 35. Rb2 {[%clk 0:00:07.5]} 35... Ke5 {[%clk
0:00:04.9]} 36. Be2 {[%clk 0:00:04.3]} 36... Bf7 {[%clk 0:00:02.8]} 37. Rb4
{[%clk 0:00:04.3]} 37... Be6 {[%clk 0:00:02.5]} 38. Rb2 {[%clk 0:00:04.5]} 38...
Kd6 {[%clk 0:00:02.2]} 39. Rb1 {[%clk 0:00:04.8]} 39... Kc7 {[%clk 0:00:02.1]}
40. Bd3 {[%clk 0:00:05]} 40... Re5 {[%clk 0:00:02.1]} 41. Kc3 {[%clk 0:00:04.9]}
41... Kb6 {[%clk 0:00:02.2]} 42. Rb2 {[%clk 0:00:04.5]} 42... Rc5+ {[%clk
0:00:02.3]} 43. Kd2 {[%clk 0:00:05.1]} 43... Re5 {[%clk 0:00:02.3]} 44. Rb1
{[%clk 0:00:05.2]} 44... Bd7 {[%clk 0:00:02.5]} 45. Kc3 {[%clk 0:00:05.8]} 45...
c5 {[%clk 0:00:02.7]} 46. Ra1 {[%clk 0:00:06.4]} 46... b4+ {[%clk 0:00:02.8]}
47. Kb3 {[%clk 0:00:05.8]} 47... Bb5 {[%clk 0:00:03]} 48. Bc2 {[%clk 0:00:04.7]}
48... Re6 {[%clk 0:00:02.5]} 49. Ra8 {[%clk 0:00:04.7]} 49... Rd6 {[%clk
0:00:02.4]} 50. Rb8+ {[%clk 0:00:05.2]} 50... Ka6 {[%clk 0:00:02.2]} 51. Rf8
{[%clk 0:00:04.8]} 51... Bc6 {[%clk 0:00:02.3]} 52. Kb2 {[%clk 0:00:04.5]} 52...
Kb6 {[%clk 0:00:02.5]} 53. Bb3 {[%clk 0:00:04.4]} 53... Bb5 {[%clk 0:00:02.6]}
54. Bd5 {[%clk 0:00:04.5]} 54... c4 {[%clk 0:00:02.9]} 55. Rc8 {[%clk
0:00:03.7]} 55... c3+ {[%clk 0:00:02.7]} 56. Kb3 {[%clk 0:00:04.2]} 56... Ba6
{[%clk 0:00:02.3]} 57. Rb8+ {[%clk 0:00:03.3]} 57... Ka5 {[%clk 0:00:02]} 58.
Rxb4 {[%clk 0:00:03.3]} 58... Bb5 {[%clk 0:00:01.7]} 59. Kxc3 {[%clk 0:00:03]}
59... Kb6 {[%clk 0:00:01.6]} 60. Bc4 {[%clk 0:00:03.2]} 60... Rc6 {[%clk
0:00:01.6]} 61. Rxb5+ {[%clk 0:00:03.7]} 61... Kc7 {[%clk 0:00:01.5]} 62. Kd4
{[%clk 0:00:03.7]} 1-0

[Event "*** Titled Tuesday Blitz"]
[Site "Chess.com"]
[Date "2020.04.28"]
[Round "4"]
[White "Bastiandash"]
[Black "Chichin_chao"]
[Result "1-0"]
[WhiteElo "2022"]
[BlackElo "2367"]
[TimeControl "180+1"]
[EndTime "10:41:45 PDT"]
[Termination "Bastiandash won on time"]

1. Nf3 {[%clk 0:03:00.9]} 1... Nf6 {[%clk 0:02:56.6]} 2. b3 {[%clk 0:03:01.8]}
2... d6 {[%clk 0:02:56.3]} 3. Bb2 {[%clk 0:03:02.7]} 3... Nbd7 {[%clk
0:02:56.6]} 4. e3 {[%clk 0:03:03.6]} 4... e5 {[%clk 0:02:56.8]} 5. c4 {[%clk
0:03:02.4]} 5... Be7 {[%clk 0:02:56.7]} 6. Nc3 {[%clk 0:03:02.4]} 6... O-O
{[%clk 0:02:57.2]} 7. Qc2 {[%clk 0:02:58]} 7... Re8 {[%clk 0:02:57]} 8. Be2
{[%clk 0:02:55.3]} 8... Bf8 {[%clk 0:02:55]} 9. O-O {[%clk 0:02:53.5]} 9... c6
{[%clk 0:02:55.1]} 10. d4 {[%clk 0:02:52.1]} 10... a5 {[%clk 0:02:55.5]} 11.
dxe5 {[%clk 0:02:50.8]} 11... dxe5 {[%clk 0:02:55.4]} 12. Rad1 {[%clk
0:02:51.1]} 12... Qc7 {[%clk 0:02:54.5]} 13. Ng5 {[%clk 0:02:39.2]} 13... Nc5
{[%clk 0:02:41.7]} 14. Nce4 {[%clk 0:02:07.3]} 14... Ncxe4 {[%clk 0:02:35.2]}
15. Nxe4 {[%clk 0:02:08.2]} 15... Nxe4 {[%clk 0:02:35.4]} 16. Qxe4 {[%clk
0:02:09.1]} 16... f5 {[%clk 0:02:35]} 17. Qh4 {[%clk 0:01:53]} 17... Be7 {[%clk
0:02:18]} 18. Qg3 {[%clk 0:01:50.9]} 18... Bf6 {[%clk 0:02:17.2]} 19. Rd2 {[%clk
0:01:28.5]} 19... Be6 {[%clk 0:02:15.9]} 20. Rfd1 {[%clk 0:01:27.4]} 20... f4
{[%clk 0:01:53.6]} 21. exf4 {[%clk 0:00:43.2]} 21... exf4 {[%clk 0:01:54.5]} 22.
Qf3 {[%clk 0:00:44.1]} 22... Bxb2 {[%clk 0:01:51.2]} 23. Rxb2 {[%clk 0:00:45]}
23... Rad8 {[%clk 0:01:51.8]} 24. Rbd2 {[%clk 0:00:45]} 24... Rxd2 {[%clk
0:01:50.3]} 25. Rxd2 {[%clk 0:00:45.9]} 25... h6 {[%clk 0:01:42.7]} 26. Rd4
{[%clk 0:00:25.4]} 26... Bf7 {[%clk 0:01:20.5]} 27. Re4 {[%clk 0:00:20.4]} 27...
Rxe4 {[%clk 0:00:53.4]} 28. Qxe4 {[%clk 0:00:21.3]} 28... Qd6 {[%clk 0:00:54]}
29. Bd3 {[%clk 0:00:20.8]} 29... Kf8 {[%clk 0:00:51]} 30. h3 {[%clk 0:00:21]}
30... g5 {[%clk 0:00:45.6]} 31. Qf5 {[%clk 0:00:13.1]} 31... Ke7 {[%clk
0:00:42.3]} 32. Qe4+ {[%clk 0:00:11.8]} 32... Qe6 {[%clk 0:00:40.7]} 33. Qd4
{[%clk 0:00:11.7]} 33... Qd6 {[%clk 0:00:37.1]} 34. Qe4+ {[%clk 0:00:11.1]}
34... Kd8 {[%clk 0:00:34.1]} 35. Kf1 {[%clk 0:00:06.9]} 35... Kc7 {[%clk
0:00:32.9]} 36. Ke2 {[%clk 0:00:06.4]} 36... Qf6 {[%clk 0:00:30.2]} 37. Kf3
{[%clk 0:00:04.8]} 37... Bh5+ {[%clk 0:00:29.1]} 38. g4 {[%clk 0:00:02.6]} 38...
Bf7 {[%clk 0:00:19.2]} 39. Qf5 {[%clk 0:00:02.7]} 39... Qxf5 {[%clk 0:00:18.5]}
40. Bxf5 {[%clk 0:00:03.6]} 40... Kd6 {[%clk 0:00:18.7]} 41. Ke4 {[%clk
0:00:04]} 41... b5 {[%clk 0:00:18.7]} 42. cxb5 {[%clk 0:00:03.6]} 42... cxb5
{[%clk 0:00:16]} 43. Bc8 {[%clk 0:00:04.1]} 43... Bd5+ {[%clk 0:00:13.3]} 44.
Kf5 {[%clk 0:00:03.4]} 44... Bg2 {[%clk 0:00:10.6]} 45. Kg6 {[%clk 0:00:03.5]}
45... Bxh3 {[%clk 0:00:11]} 46. Kxh6 {[%clk 0:00:03.5]} 46... Ke5 {[%clk
0:00:08.4]} 47. Kxg5 {[%clk 0:00:03]} 47... b4 {[%clk 0:00:08.1]} 48. Kh4 {[%clk
0:00:02.5]} 48... Bf1 {[%clk 0:00:07.7]} 49. g5 {[%clk 0:00:02.7]} 49... Bd3
{[%clk 0:00:08.3]} 50. Kh5 {[%clk 0:00:02.6]} 50... Kd4 {[%clk 0:00:06.8]} 51.
g6 {[%clk 0:00:02.1]} 51... Kc3 {[%clk 0:00:06.6]} 52. g7 {[%clk 0:00:01.7]}
52... Bh7 {[%clk 0:00:05.1]} 53. Be6 {[%clk 0:00:01.8]} 1-0